bitfinex/quotes_BTCUSD_20251205
["timestamp","ask_amount","ask_price","bid_price","bid_amount"]
[1764916201564,0.0108613,92070.0,92069.0,0.01712]
[1764916201991,0.01086059,92076.0,92072.0,0.01086106]
[1764916202186,0.24022505,92075.0,92070.0,0.23008696]
[1764916202565,0.01086082,92074.0,92073.0,0.02173972]
[1764916203375,0.01086082,92074.0,92073.0,0.04327572]
[1764916204204,0.01086082,92074.0,92073.0,0.04427572]
[1764916204598,0.02301071,92075.0,92074.0,0.021536]
[1764916206902,0.02301071,92075.0,92074.0,0.022536]
[1764916207830,0.03816071,92075.0,92074.0,0.022536]
[1764916208127,0.06286071,92075.0,92074.0,0.022536]
[1764916208539,0.06286071,92075.0,92074.0,0.039656]
[1764916208675,0.06286071,92075.0,92074.0,0.022536]
[1764916209120,0.06286071,92075.0,92074.0,0.01812]
[1764916209977,0.06286071,92075.0,92074.0,0.01712]
[1764916210199,0.06286071,92075.0,92071.0,0.038656]
[1764916210200,0.01086106,92072.0,92071.0,0.038656]
[1764916210648,0.05071106,92072.0,92071.0,0.038656]
[1764916211387,0.05171106,92072.0,92071.0,0.038656]
[1764916211605,0.05271106,92072.0,92071.0,0.038656]
[1764916212062,0.01286106,92072.0,92071.0,0.038656]
[1764916212496,0.05271106,92072.0,92071.0,0.038656]
[1764916212938,0.05271106,92072.0,92071.0,0.04041477]
[1764916213186,0.02801106,92072.0,92071.0,0.01887877]
[1764916213716,0.02701106,92072.0,92071.0,0.01887877]
[1764916213889,0.02601106,92072.0,92071.0,0.01887877]
[1764916214696,0.01086106,92072.0,92071.0,0.01887877]
[1764916215628,0.01086106,92072.0,92071.0,0.04041477]
[1764916216582,0.01086071,92075.0,92074.0,0.021536]
[1764916218028,0.01086071,92075.0,92074.0,0.023536]
[1764916219069,0.01086059,92076.0,92075.0,0.021536]
[1764916219402,0.01086035,92078.0,92077.0,0.021536]
[1764916220042,0.01086012,92080.0,92079.0,0.021536]
[1764916221636,0.01086012,92080.0,92079.0,0.022536]
[1764916222750,0.05071012,92080.0,92079.0,0.022536]
[1764916223156,0.05071012,92080.0,92079.0,0.02406308]
[1764916223591,0.01086012,92080.0,92079.0,0.02406308]
[1764916224442,0.02601012,92080.0,92079.0,0.02406308]
[1764916225668,0.01086012,92080.0,92079.0,0.02406308]
[1764916227332,0.02601012,92080.0,92079.0,0.02406308]
[1764916227530,0.05071012,92080.0,92079.0,0.02406308]
[1764916231639,0.05071012,92080.0,92079.0,0.04118308]
[1764916232412,0.05071012,92080.0,92079.0,0.04018308]
[1764916232865,0.05271012,92080.0,92079.0,0.04018308]
[1764916233030,0.05271012,92080.0,92079.0,0.01864708]
[1764916233226,0.05371012,92080.0,92079.0,0.01864708]
[1764916239400,0.01386012,92080.0,92079.0,0.01864708]
[1764916239612,0.05343012,92080.0,92079.0,0.01864708]
[1764916240869,0.05243012,92080.0,92079.0,0.01864708]
[1764916241250,0.05343012,92080.0,92079.0,0.01864708]
[1764916241591,0.05143012,92080.0,92079.0,0.01864708]
[1764916241789,0.05143012,92080.0,92079.0,0.00152708]
[1764916242022,0.05243012,92080.0,92079.0,0.01864708]
[1764916242230,0.05243012,92080.0,92079.0,0.00152708]
[1764916242379,0.06260759,92080.0,92079.0,0.04018308]
[1764916242583,0.06260759,92080.0,92079.0,0.02306308]
[1764916242811,0.06260759,92080.0,92079.0,0.00152708]
[1764916243154,0.08567067,92080.0,92079.0,0.00152708]
[1764916243951,0.08467067,92080.0,92079.0,0.00152708]
[1764916244158,0.08867067,92080.0,92079.0,0.00152708]
[1764916245003,0.08767067,92080.0,92079.0,0.00152708]
[1764916245533,0.10067067,92080.0,92079.0,0.00152708]
[1764916255823,0.10067067,92080.0,92079.0,0.02306308]
[1764916258955,0.05401759,92080.0,92079.0,0.02306308]
[1764916259102,0.06824012,92080.0,92079.0,0.02306308]
[1764916259306,0.06824012,92080.0,92079.0,0.00152708]
[1764916263132,0.04384012,92080.0,92079.0,0.00152708]
[1764916263560,0.06824012,92080.0,92079.0,0.00152708]
[1764916263917,0.05124012,92080.0,92079.0,0.00152708]
[1764916264128,0.05224012,92080.0,92079.0,0.00152708]
[1764916264533,0.05124012,92080.0,92079.0,0.00152708]
[1764916265616,0.05124012,92080.0,92079.0,0.02306308]
[1764916266081,0.05224012,92080.0,92079.0,0.02306308]
[1764916266500,0.02784012,92080.0,92079.0,0.02306308]
[1764916267992,0.01186012,92080.0,92079.0,0.02306308]
[1764916268736,0.02847012,92080.0,92079.0,0.02306308]
[1764916270692,0.05136012,92080.0,92079.0,0.02306308]
[1764916270924,0.02847012,92080.0,92079.0,0.02306308]
[1764916272426,0.05136012,92080.0,92079.0,0.00152708]
[1764916272856,0.21724013,92065.0,92060.0,0.00099999]
[1764916273071,0.21724013,92065.0,92062.0,0.021536]
[1764916273072,0.01086212,92063.0,92062.0,0.021536]
[1764916273288,0.22810642,92063.0,92062.0,0.021536]
[1764916273524,0.22810642,92063.0,92051.0,0.021536]
[1764916273525,0.22923052,92052.0,92051.0,0.021536]
[1764916273739,0.24584052,92052.0,92051.0,0.038656]
[1764916273971,0.26873052,92052.0,92051.0,0.03946685]
[1764916279053,0.26873052,92052.0,92051.0,0.01793085]
[1764916282177,0.26873052,92052.0,92051.0,0.00081085]
[1764916283308,0.30134607,92052.0,92051.0,0.00081085]
[1764916283657,0.31549315,92052.0,92051.0,0.00081085]
[1764916283880,0.32949315,92052.0,92051.0,0.00081085]
[1764916284260,0.31934607,92052.0,92051.0,0.00081085]
[1764916284872,0.32949182,92052.0,92051.0,0.00081085]
[1764916285278,0.31934607,92052.0,92051.0,0.00081085]
[1764916285824,0.32948831,92052.0,92051.0,0.00081085]
[1764916286376,0.31934607,92052.0,92051.0,0.00081085]
[1764916294667,0.39918759,92052.0,92051.0,0.00081085]
[1764916295496,0.21731807,92031.0,92030.0,0.0004]
[1764916295789,0.24588807,92031.0,92030.0,0.0004]
[1764916296009,0.26877807,92031.0,92030.0,0.0004]
[1764916296212,0.29031407,92031.0,92030.0,0.0004]
[1764916296413,0.26877807,92031.0,92030.0,0.0004]
[1764916297354,0.26877807,92031.0,92030.0,0.0014]
[1764916299966,0.26846896,92031.0,92030.0,0.0014]
[1764916301121,0.26846896,92031.0,92030.0,0.00200836]
[1764916308372,0.27862404,92031.0,92030.0,0.00200836]
[1764916308576,0.69804845,92031.0,92030.0,0.00200836]
[1764916308935,0.21734169,92021.0,92020.0,0.0004]
[1764916309134,0.21734169,92021.0,92010.0,0.0004]
[1764916309135,0.21736531,92011.0,92010.0,0.0004]
[1764916309428,0.25439039,92011.0,92010.0,0.0004]
[1764916309635,0.27881039,92011.0,92010.0,0.0004]
[1764916309780,0.27873439,92011.0,92010.0,0.0004]
[1764916311462,0.28173439,92011.0,92010.0,0.0004]
[1764916312225,0.28873439,92011.0,92010.0,0.0004]
[1764916314899,0.28873439,92011.0,92010.0,0.00097959]
[1764916315558,0.28872096,92011.0,92010.0,0.00097959]
[1764916321111,0.36674349,92011.0,92010.0,0.00097959]
[1764916321369,0.21738894,92001.0,92000.0,0.0004]
[1764916321584,0.21738894,92001.0,91993.0,0.00610094]
[1764916321585,0.21740548,91994.0,91993.0,0.00610094]
[1764916321812,0.25441713,91994.0,91993.0,9.4e-07]
[1764916322036,0.27883713,91994.0,91993.0,9.4e-07]
[1764916322861,0.3792334,91994.0,91993.0,9.4e-07]
[1764916323077,0.3892334,91994.0,91993.0,0.00100094]
[1764916323297,0.01087157,91983.0,91980.0,0.0004]
[1764916323513,0.02687,91981.0,91980.0,0.0004]
[1764916323973,0.27886785,91981.0,91980.0,0.0004]
[1764916325566,0.28186785,91981.0,91980.0,0.0004]
[1764916326030,0.28486785,91981.0,91980.0,0.0004]
[1764916332064,0.2747262,91981.0,91980.0,0.0004]
[1764916332475,0.2747262,91981.0,91980.0,0.00126976]
[1764916333358,0.28483365,91981.0,91980.0,0.00126976]
[1764916334000,0.2747262,91981.0,91980.0,0.02280576]
[1764916335488,0.28485224,91981.0,91980.0,0.02280576]
[1764916335724,0.2747262,91981.0,91980.0,0.02280576]
[1764916335933,0.28485218,91981.0,91980.0,0.00126976]
[1764916342745,0.2747262,91981.0,91980.0,0.00126976]
[1764916342949,0.06729,91981.0,91980.0,0.00126976]
[1764916343338,0.2845962,91981.0,91980.0,0.02280576]
[1764916343803,0.2603062,91981.0,91980.0,0.02280576]
[1764916344838,0.016,91981.0,91980.0,0.02280576]
[1764916345996,0.016,91981.0,91980.0,0.02892576]
[1764916346617,0.013,91981.0,91980.0,0.02892576]
[1764916347260,0.01,91981.0,91980.0,0.02586576]
[1764916347845,0.011,91981.0,91980.0,0.03786576]
[1764916349061,0.011,91981.0,91980.0,0.36392576]
[1764916350717,0.01,91981.0,91980.0,0.35292576]
[1764916350960,0.011,91981.0,91980.0,0.36592576]
[1764916360040,0.011,91981.0,91980.0,0.42844875]
[1764916361655,0.011,91981.0,91980.0,0.40691275]
[1764916361858,0.011,91981.0,91980.0,1.30603775]
[1764916362453,0.011,91981.0,91980.0,0.92010075]
[1764916363060,0.011,91981.0,91980.0,0.91910075]
[1764916363475,0.011,91981.0,91980.0,0.91902858]
[1764916363682,0.011,91981.0,91980.0,0.90802858]
[1764916363683,0.01,91981.0,91980.0,0.90802858]
[1764916364038,0.01,91981.0,91980.0,0.91502858]
[1764916365974,0.01,91981.0,91980.0,0.9258966]
[1764916366137,0.01,91981.0,91980.0,0.9238966]
[1764916366337,0.01,91981.0,91980.0,0.9188966]
[1764916366564,0.01,91981.0,91980.0,0.9238966]
[1764916368393,0.01,91981.0,91980.0,0.9038966]
[1764916368602,0.01,91981.0,91980.0,0.8823606]
[1764916368812,0.01,91981.0,91980.0,0.4122446]
[1764916369883,0.01,91981.0,91980.0,0.5130756]
[1764916370058,0.01,91981.0,91980.0,0.5110756]
[1764916370259,0.01,91981.0,91980.0,0.5120756]
[1764916370460,0.01,91981.0,91980.0,0.5070756]
[1764916372066,0.01,91981.0,91980.0,0.4062446]
[1764916377060,0.01,91981.0,91980.0,0.5095876]
[1764916377298,0.01,91981.0,91980.0,0.4062446]
[1764916379049,0.01,91981.0,91980.0,0.8543606]
[1764916381167,0.01,91981.0,91980.0,0.7959706]
[1764916382374,0.01,91981.0,91980.0,0.4062446]
[1764916383537,0.01,91981.0,91980.0,0.39537658]
[1764916383736,0.01,91981.0,91980.0,0.41249658]
[1764916384635,0.01,91981.0,91980.0,0.021536]
[1764916384834,0.01,91981.0,91980.0,0.039656]
[1764916385057,0.01,91981.0,91980.0,0.022536]
[1764916385243,0.01,91981.0,91980.0,0.038656]
[1764916385601,0.01,91981.0,91980.0,0.361656]
[1764916385851,0.01,91981.0,91980.0,0.362656]
[1764916387424,0.02,91981.0,91980.0,0.362656]
[1764916389046,0.02,91981.0,91980.0,0.36257442]
[1764916389227,0.02,91981.0,91980.0,0.36267444]
[1764916391202,0.02,91981.0,91980.0,0.36271444]
[1764916396603,0.02,91981.0,91980.0,0.36171444]
[1764916396813,0.02,91981.0,91980.0,0.36271444]
[1764916403099,0.02,91981.0,91980.0,0.36171444]
[1764916403500,0.02,91981.0,91980.0,0.36271444]
[1764916415560,0.02,91981.0,91980.0,0.45441864]
[1764916415676,0.02,91981.0,91980.0,0.42523743]
[1764916417561,0.02,91981.0,91980.0,0.34555444]
[1764916417739,0.02,91981.0,91980.0,0.36267444]
[1764916420247,0.02,91981.0,91980.0,0.38267444]
[1764916422253,0.02,91981.0,91980.0,0.05967444]
[1764916422454,0.02,91981.0,91980.0,0.36267444]
[1764916422679,0.02,91981.0,91980.0,0.001]
[1764916422860,0.05951,91981.0,91980.0,0.02255444]
[1764916423094,0.05951,91981.0,91980.0,0.03967444]
[1764916423747,0.05951,91981.0,91980.0,0.03867444]
[1764916423948,0.02,91981.0,91980.0,0.03867444]
[1764916424428,0.02,91981.0,91980.0,0.03967444]
[1764916424862,0.02,91981.0,91980.0,0.03867444]
[1764916425610,0.02,91981.0,91980.0,0.06041829]
[1764916426615,0.02,91981.0,91980.0,0.03867444]
[1764916430581,0.02,91981.0,91980.0,0.38341829]
[1764916430790,0.02,91981.0,91980.0,0.36167444]
[1764916431633,0.02,91981.0,91980.0,0.36267444]
[1764916431832,0.02,91981.0,91980.0,0.34555444]
[1764916431945,0.02,91981.0,91980.0,0.36271444]
[1764916438243,0.02,91981.0,91980.0,0.36263142]
[1764916445277,0.00935036,91981.0,91980.0,0.36263142]
[1764916453511,0.00935036,91981.0,91980.0,0.39526219]
[1764916457147,0.00935036,91981.0,91980.0,2.17317318]
[1764916457369,3.6e-07,91981.0,91980.0,2.20235439]
[1764916457570,0.0108672,92020.0,92019.0,0.02155444]
[1764916457911,0.0496772,92020.0,92019.0,0.02155444]
[1764916459944,0.01174,92022.0,92021.0,0.02155444]
[1764916460132,0.22819599,92027.0,92025.0,0.02155444]
[1764916460537,0.02791,92026.0,92025.0,0.02155444]
[1764916460744,0.05055,92026.0,92025.0,0.02155444]
[1764916461570,0.001,92026.0,92025.0,0.02155444]
[1764916462204,0.01717,92026.0,92025.0,0.02155444]
[1764916462407,0.03981,92026.0,92025.0,0.02155444]
[1764916463396,0.001,92026.0,92025.0,0.02155444]
[1764916464406,0.02260554,92034.0,92024.0,0.02173972]
[1764916464407,0.02260554,92034.0,92033.0,0.02155444]
[1764916464604,0.02260554,92034.0,92033.0,0.03871444]
[1764916465059,0.06141554,92034.0,92033.0,0.03871444]
[1764916465595,0.06241554,92034.0,92033.0,0.03871444]
[1764916467741,0.03977554,92034.0,92033.0,0.03871444]
[1764916468128,0.06241554,92034.0,92033.0,0.03871444]
[1764916468349,0.001,92034.0,92033.0,0.03871444]
[1764916468577,0.00302137,92034.0,92033.0,0.03871444]
[1764916470284,0.00202137,92034.0,92033.0,0.03871444]
[1764916474001,0.00202137,92034.0,92033.0,0.0603736]
[1764916478205,0.00202137,92034.0,92033.0,0.04328577]
[1764916478415,0.00202137,92034.0,92033.0,0.03871444]
[1764916479656,0.00202137,92034.0,92033.0,0.06044577]
[1764916480475,0.00202137,92034.0,92033.0,0.03871444]
[1764916481225,0.00202137,92034.0,92033.0,0.0495788]
[1764916483499,0.00202137,92034.0,92033.0,0.0495388]
[1764916484922,0.00202137,92034.0,92033.0,0.61158348]
[1764916485140,0.00202137,92034.0,92033.0,0.58985215]
[1764916487483,0.00202137,92034.0,92033.0,0.58983865]
[1764916488147,0.00202137,92034.0,92033.0,0.56829771]
[1764916488357,0.00202137,92034.0,92033.0,0.59747892]
[1764916488565,0.00202137,92034.0,92033.0,0.68154285]
[1764916488791,0.00202137,92034.0,92033.0,0.78182285]
[1764916489650,0.00202137,92034.0,92033.0,0.78282285]
[1764916489859,0.00202137,92034.0,92033.0,0.78482285]
[1764916490279,0.00202137,92034.0,92033.0,0.75564164]
[1764916492728,1.37e-06,92034.0,92033.0,0.75564164]
[1764916493405,1.37e-06,92034.0,92033.0,0.78482285]
[1764916494183,1.37e-06,92034.0,92033.0,0.78382285]
[1764916494611,1.37e-06,92034.0,92033.0,0.82068807]
[1764916495500,1.37e-06,92034.0,92033.0,0.81868807]
[1764916496235,1.37e-06,92034.0,92033.0,0.82368807]
[1764916498459,1.37e-06,92034.0,92033.0,0.80656807]
[1764916498692,1.37e-06,92034.0,92033.0,0.82372807]
[1764916500323,1.37e-06,92034.0,92033.0,0.93812807]
[1764916500973,0.0002,92080.0,92079.0,0.21720479]
[1764916501204,0.0002,92080.0,92079.0,0.57890573]
[1764916501422,0.0002,92080.0,92079.0,0.64142872]
[1764916501640,0.0002,92080.0,92079.0,0.66387577]
[1764916502447,0.0002,92080.0,92079.0,0.66587577]
[1764916502691,0.0002,92080.0,92079.0,1.19268477]
[1764916502895,0.01085575,92117.0,92089.0,0.60270419]
[1764916503095,0.01085552,92119.0,92089.0,0.62424513]
[1764916503410,0.01085481,92125.0,92089.0,0.62424513]
[1764916503611,0.21728601,92130.0,92089.0,1.74476734]
[1764916503612,0.01085434,92129.0,92089.0,1.74476734]
[1764916503814,0.21728521,92130.0,92089.0,1.74476734]
[1764916503815,0.22813976,92130.0,92089.0,1.74476734]
[1764916504018,0.21709011,92128.0,92089.0,1.74476734]
[1764916504223,0.22795487,92124.0,92089.0,1.74476734]
[1764916504431,0.01085587,92116.0,92089.0,1.43085713]
[1764916504652,0.01085552,92119.0,92089.0,1.43085713]
[1764916504653,0.01085528,92121.0,92089.0,1.43085713]
[1764916504859,0.01085481,92125.0,92089.0,1.43085713]
[1764916504860,0.01159,92127.0,92089.0,1.43185713]
[1764916505070,0.2286825,92127.0,92089.0,1.43185713]
[1764916505274,0.01085481,92125.0,92089.0,1.43585713]
[1764916505472,0.01085493,92124.0,92089.0,1.43085713]
[1764916505718,0.01085481,92125.0,92089.0,1.43185713]
[1764916505955,0.01159,92127.0,92089.0,1.43485713]
[1764916506174,0.01085469,92126.0,92089.0,1.43485713]
[1764916506395,0.01085493,92124.0,92089.0,1.43475678]
[1764916506615,0.00182126,92090.0,92089.0,1.43475678]
[1764916507252,0.00182126,92090.0,92089.0,1.44561171]
[1764916507467,0.00182126,92090.0,92089.0,1.47479292]
[1764916508766,1.26e-06,92090.0,92089.0,1.47479292]
[1764916511408,1.26e-06,92090.0,92089.0,1.44561171]
[1764916515159,1.26e-06,92090.0,92089.0,1.46273171]
[1764916515714,1.26e-06,92090.0,92089.0,1.45973171]
[1764916516338,1.26e-06,92090.0,92089.0,1.45873171]
[1764916516545,1.26e-06,92090.0,92089.0,1.46073171]
[1764916516769,1.26e-06,92090.0,92089.0,1.25756671]
[1764916516986,1.26e-06,92090.0,92089.0,1.28168671]
[1764916517403,1.26e-06,92090.0,92089.0,1.27968671]
[1764916517867,1.26e-06,92090.0,92089.0,1.27468671]
[1764916518068,1.26e-06,92090.0,92089.0,1.21997771]
[1764916518270,1.26e-06,92090.0,92089.0,0.65711971]
[1764916518648,1.26e-06,92090.0,92089.0,0.63999971]
[1764916518854,1.26e-06,92090.0,92089.0,0.65711971]
[1764916519258,1.26e-06,92090.0,92089.0,0.65511971]
[1764916519763,1.26e-06,92090.0,92089.0,0.65611971]
[1764916520779,1.26e-06,92090.0,92089.0,0.63457877]
[1764916520993,1.26e-06,92090.0,92089.0,2.14637677]
[1764916521201,1.26e-06,92090.0,92089.0,2.16791771]
[1764916524057,1.26e-06,92090.0,92089.0,2.16785816]
[1764916525770,1.26e-06,92090.0,92089.0,2.19704188]
[1764916527640,1.26e-06,92090.0,92089.0,2.16785816]
[1764916531429,1.26e-06,92090.0,92089.0,2.2319071]
[1764916532060,1.26e-06,92090.0,92089.0,2.19704188]
[1764916534353,1.26e-06,92090.0,92089.0,1.51928616]
[1764916537041,1.26e-06,92090.0,92089.0,1.50216616]
[1764916537250,1.26e-06,92090.0,92089.0,1.51928616]
[1764916537936,1.26e-06,92090.0,92089.0,1.50216616]
[1764916538169,1.26e-06,92090.0,92089.0,1.51928616]
[1764916538624,1.26e-06,92090.0,92089.0,1.50216616]
[1764916538845,1.26e-06,92090.0,92089.0,1.51928616]
[1764916543393,1.26e-06,92090.0,92089.0,1.50216616]
[1764916543586,1.26e-06,92090.0,92089.0,1.51928616]
[1764916547169,1.26e-06,92090.0,92089.0,1.51853259]
[1764916547590,1.26e-06,92090.0,92089.0,1.50141259]
[1764916547802,1.26e-06,92090.0,92089.0,1.51853259]
[1764916553348,0.01157,92117.0,92109.0,0.56167498]
[1764916553556,0.01157,92117.0,92109.0,0.57879498]
[1764916553965,0.00077872,92110.0,92109.0,0.57879498]
[1764916556573,0.00077872,92110.0,92109.0,0.56167498]
[1764916556730,0.00077872,92110.0,92109.0,0.57879498]
[1764916558520,0.00077872,92110.0,92109.0,0.56167498]
[1764916558719,0.00077872,92110.0,92109.0,0.57879498]
[1764916559597,0.00077872,92110.0,92109.0,0.56167498]
[1764916559748,0.00077872,92110.0,92109.0,0.57879498]
[1764916560309,0.00077872,92110.0,92109.0,0.56160291]
[1764916560520,0.00077872,92110.0,92109.0,0.57872291]
[1764916560856,0.00058824,92110.0,92109.0,0.57872291]
[1764916564468,0.00058824,92110.0,92109.0,0.56160291]
[1764916564643,0.00058824,92110.0,92109.0,0.57872291]
[1764916566221,0.00058824,92110.0,92109.0,0.36166094]
[1764916566427,0.04001824,92110.0,92109.0,0.36166094]
[1764916568021,0.25714993,92110.0,92109.0,0.34454094]
[1764916568227,0.25714993,92110.0,92109.0,0.36166094]
[1764916568438,0.25714993,92110.0,92109.0,0.03866094]
[1764916568849,0.00058824,92110.0,92109.0,0.03866094]
[1764916572238,0.03603824,92110.0,92109.0,0.03866094]
[1764916573570,0.22800373,92104.0,92103.0,0.02154094]
[1764916573768,0.25598373,92104.0,92103.0,0.03866094]
[1764916573967,0.05269,92104.0,92103.0,0.03866094]
[1764916574175,0.02798,92104.0,92103.0,0.02154094]
[1764916574380,0.02798,92104.0,92103.0,0.03866094]
[1764916575635,0.05269,92104.0,92103.0,0.02154094]
[1764916575828,0.01085811,92097.0,92096.0,0.02154094]
[1764916576037,0.01085811,92097.0,92096.0,0.03866094]
[1764916576242,0.06354811,92097.0,92096.0,0.02154094]
[1764916576436,0.06354811,92097.0,92084.0,0.01085964]
[1764916576437,0.01085929,92087.0,92084.0,0.01085964]
[1764916576609,0.2280385,92090.0,92089.0,0.02154094]
[1764916577059,0.2437785,92090.0,92089.0,0.02154094]
[1764916577234,0.05130894,92090.0,92089.0,0.02154094]
[1764916577408,0.04045,92090.0,92089.0,0.02154094]
[1764916578206,0.04045,92090.0,92089.0,0.02152072]
[1764916579072,0.04045,92090.0,92089.0,0.03864072]
[1764916579289,0.04245,92090.0,92089.0,0.03864072]
[1764916585401,0.04045,92090.0,92089.0,0.03864072]
[1764916585606,0.04345,92090.0,92089.0,0.03864072]
[1764916587917,0.003,92090.0,92089.0,0.03864072]
[1764916588980,0.01085858,92093.0,92092.0,0.02152072]
[1764916589204,0.03556858,92093.0,92092.0,0.02152072]
[1764916589411,0.04045,92093.0,92092.0,0.02152072]
[1764916590414,0.04245,92093.0,92092.0,0.02152072]
[1764916592828,0.002,92093.0,92092.0,0.23869485]
[1764916593060,0.002,92093.0,92092.0,0.19322204]
[1764916593377,0.002,92093.0,92092.0,0.19187204]
[1764916593822,0.02309776,92100.0,92096.0,0.01085823]
[1764916594017,0.02309776,92100.0,92099.0,0.02155202]
[1764916594220,0.04780776,92100.0,92099.0,0.02155202]
[1764916594438,0.06354776,92100.0,92099.0,0.02155202]
[1764916594804,0.05269,92100.0,92099.0,0.02155202]
[1764916594999,0.05269,92100.0,92099.0,0.02159876]
[1764916596258,0.05369,92100.0,92099.0,0.02159876]
[1764916596401,0.02898,92100.0,92099.0,0.02159876]
[1764916597295,0.001,92100.0,92099.0,0.34459876]
[1764916597669,0.001,92100.0,92099.0,0.34594876]
[1764916598238,0.01157,92111.0,92110.0,0.02159876]
[1764916598440,0.01227,92119.0,92117.0,0.02159876]
[1764916598931,0.04019145,92118.0,92117.0,0.02159876]
[1764916599615,0.04819145,92118.0,92117.0,0.02159876]
[1764916600875,0.05019145,92118.0,92117.0,0.02159876]
[1764916601091,0.05019145,92118.0,92117.0,0.03871876]
[1764916603552,0.01023145,92118.0,92117.0,0.03871876]
[1764916603752,0.05019145,92118.0,92117.0,0.03871876]
[1764916606660,0.05019145,92118.0,92117.0,0.02159876]
[1764916606894,0.05019145,92118.0,92117.0,0.03871876]
[1764916612227,0.05019145,92118.0,92117.0,0.03866197]
[1764916616393,0.05019145,92118.0,92117.0,0.02154197]
[1764916616609,0.05019145,92118.0,92117.0,0.03866197]
[1764916617159,0.26730428,92118.0,92117.0,0.03866197]
[1764916619648,0.21711776,92116.0,92115.0,0.02154197]
[1764916619849,0.21711776,92116.0,92115.0,0.03866197]
[1764916620051,0.25586776,92116.0,92115.0,0.03866197]
[1764916620496,0.03875,92116.0,92115.0,0.03866197]
[1764916620708,0.03975,92116.0,92115.0,0.03866197]
[1764916621083,0.03975,92116.0,92115.0,0.02154197]
[1764916621297,0.04475,92116.0,92115.0,0.03866197]
[1764916621470,0.21712461,92113.0,92112.0,0.02173972]
[1764916621669,0.21712461,92113.0,92097.0,0.03259046]
[1764916621670,0.01085682,92108.0,92107.0,0.02154197]
[1764916621876,0.03824682,92108.0,92107.0,0.03866197]
[1764916622193,0.06113682,92108.0,92107.0,0.03866197]
[1764916623017,0.06413682,92108.0,92107.0,0.03866197]
[1764916627695,0.06413682,92108.0,92107.0,0.03869312]
[1764916628113,0.06413682,92108.0,92107.0,0.02157312]
[1764916628323,0.06413682,92108.0,92107.0,0.03869312]
[1764916628803,0.06413682,92108.0,92107.0,0.01712]
[1764916629007,0.06413682,92108.0,92107.0,0.03869312]
[1764916632277,0.28127558,92108.0,92107.0,0.02157312]
[1764916632479,0.21717439,92092.0,92091.0,0.02157312]
[1764916632681,0.01085858,92093.0,92092.0,0.02157312]
[1764916633306,0.02715858,92093.0,92092.0,0.02157312]
[1764916633519,0.05090858,92093.0,92092.0,0.02157312]
[1764916634021,0.21717413,92092.0,92091.0,0.001]
[1764916634226,0.25722413,92092.0,92091.0,0.02157312]
[1764916634428,0.25722413,92092.0,92091.0,0.03869312]
[1764916635211,0.25722413,92092.0,92091.0,0.01712]
[1764916636539,0.2171812,92089.0,92088.0,0.02157312]
[1764916636708,0.2334812,92089.0,92088.0,0.03869312]
[1764916636908,0.2572312,92089.0,92088.0,0.03869312]
[1764916638238,0.2592312,92089.0,92088.0,0.03869312]
[1764916641295,0.04205,92089.0,92088.0,0.03869312]
[1764916645396,0.002,92089.0,92088.0,0.03869312]
[1764916646486,0.22803283,92092.0,92091.0,0.02157312]
[1764916646855,0.24433283,92092.0,92091.0,0.02157312]
[1764916647068,0.26808283,92092.0,92091.0,0.02157312]
[1764916647850,0.27108283,92092.0,92091.0,0.02157312]
[1764916649417,0.27108283,92092.0,92091.0,0.03869312]
[1764916664609,0.27108283,92092.0,92091.0,0.02157312]
[1764916664821,0.27108283,92092.0,92091.0,0.03869312]
[1764916665245,0.0539087,92092.0,92091.0,0.03869312]
[1764916665459,0.003,92092.0,92091.0,0.04004312]
[1764916665698,0.003,92092.0,92091.0,0.36304312]
[1764916666149,0.003,92092.0,92091.0,0.39564102]
[1764916666633,0.24014051,92106.0,92097.0,0.01085811]
[1764916666842,0.24014051,92106.0,92101.0,0.03259736]
[1764916667050,0.24014051,92106.0,92102.0,0.01712]
[1764916667264,0.01214,92106.0,92105.0,0.02157312]
[1764916667481,0.02238682,92108.0,92105.0,0.02157312]
[1764916667482,0.01153,92108.0,92107.0,0.02157312]
[1764916669023,0.01453,92108.0,92107.0,0.02157312]
[1764916669928,0.054,92108.0,92107.0,0.02157312]
[1764916671293,0.03023,92108.0,92107.0,0.02157312]
[1764916672289,0.01453,92108.0,92107.0,0.02157312]
[1764916674849,0.003,92108.0,92107.0,0.02157312]
[1764916675465,0.003,92108.0,92107.0,0.03298312]
[1764916677612,0.04247,92108.0,92107.0,0.03298312]
[1764916677838,0.04247,92108.0,92107.0,0.03869312]
[1764916682049,0.21713876,92107.0,92106.0,0.02157312]
[1764916682209,0.24090876,92107.0,92106.0,0.03869312]
[1764916682406,0.25660876,92107.0,92106.0,0.03869312]
[1764916683057,0.25960876,92107.0,92106.0,0.03869312]
[1764916684691,0.04247,92107.0,92106.0,0.03869312]
[1764916687275,0.003,92107.0,92106.0,0.03869312]
[1764916687484,0.003,92107.0,92106.0,0.01712]
[1764916687693,0.003,92107.0,92106.0,0.03869312]
[1764916687898,0.003,92107.0,92106.0,0.04954935]
[1764916690485,0.26034876,92107.0,92106.0,0.02797623]
[1764916690802,0.26034876,92107.0,92106.0,0.04954935]
[1764916691169,0.04321,92107.0,92106.0,0.04954935]
[1764916691736,0.003,92107.0,92106.0,0.04954935]
[1764916696060,0.003,92107.0,92106.0,0.05089935]
[1764916696265,0.003,92107.0,92106.0,0.05224935]
[1764916697517,0.01108709,92118.0,92117.0,0.02157312]
[1764916697724,0.01108709,92118.0,92117.0,0.03869312]
[1764916698961,0.21712738,92112.0,92108.0,0.33808786]
[1764916699171,0.21712738,92112.0,92111.0,0.03869312]
[1764916699550,0.24525738,92112.0,92111.0,0.03869312]
[1764916700026,0.26932738,92112.0,92111.0,0.03869312]
[1764916701703,0.27132738,92112.0,92111.0,0.03869312]
[1764916702830,0.27132738,92112.0,92111.0,0.02157312]
[1764916703046,0.27132738,92112.0,92111.0,0.03869312]
[1764916703922,0.27132738,92112.0,92111.0,0.02157312]
[1764916704162,0.27132738,92112.0,92111.0,0.03869312]
[1764916707201,0.27132738,92112.0,92111.0,0.02157312]
[1764916707444,0.27132738,92112.0,92111.0,0.03869312]
[1764916708778,0.27132738,92112.0,92103.0,0.02157312]
[1764916708779,0.21714761,92104.0,92103.0,0.02157312]
[1764916708993,0.21714761,92104.0,92103.0,0.03869312]
[1764916709201,0.25735761,92104.0,92103.0,0.03869312]
[1764916709419,0.25735761,92104.0,92103.0,0.02157312]
[1764916709649,0.25735761,92104.0,92103.0,0.03869312]
[1764916713148,0.25735761,92104.0,92103.0,0.02157312]
[1764916713372,0.25735761,92104.0,92103.0,0.03869312]
[1764916713753,0.21716233,92097.0,92096.0,0.05416925]
[1764916713967,0.24529233,92097.0,92096.0,0.07128925]
[1764916714160,0.26936233,92097.0,92096.0,0.03869312]
[1764916715748,0.27236233,92097.0,92096.0,0.03869312]